[Event "*** Titled Tuesday 3|2 Blitz"]
[Site "Chess.com"]
[Date "2016.09.06"]
[Round "9"]
[White "Alexander_Moskalenko"]
[Black "FairChess_on_YouTube"]
[Result "1-0"]
[WhiteElo "2655"]
[BlackElo "2690"]
[TimeControl "180+2"]
[EndTime "13:00:57 PDT"]
[Termination "Alexander_Moskalenko won by resignation"]

1. b3 {[%clk 0:03:02]} 1... e5 {[%clk 0:03:00.4]} 2. Bb2 {[%clk 0:03:03.6]} 2...
Nc6 {[%clk 0:03:01.2]} 3. c4 {[%clk 0:03:04.9]} 3... d5 {[%clk 0:02:54.8]} 4.
cxd5 {[%clk 0:03:04.5]} 4... Qxd5 {[%clk 0:02:56.7]} 5. Nc3 {[%clk 0:03:05.1]}
5... Qd8 {[%clk 0:02:57.3]} 6. e3 {[%clk 0:03:06.7]} 6... Nf6 {[%clk 0:02:57.2]}
7. a3 {[%clk 0:03:05.4]} 7... Bd6 {[%clk 0:02:54.4]} 8. d3 {[%clk 0:02:53.7]}
8... O-O {[%clk 0:02:54.2]} 9. Be2 {[%clk 0:02:55.3]} 9... Be6 {[%clk
0:02:52.4]} 10. Nf3 {[%clk 0:02:55.5]} 10... h6 {[%clk 0:02:50.4]} 11. O-O
{[%clk 0:02:54.9]} 11... Ne7 {[%clk 0:02:43.2]} 12. Nd2 {[%clk 0:02:53]} 12...
c6 {[%clk 0:02:38]} 13. Nc4 {[%clk 0:02:54]} 13... Bc7 {[%clk 0:02:38.6]} 14. b4
{[%clk 0:02:55.5]} 14... Ng6 {[%clk 0:02:35.2]} 15. Qc2 {[%clk 0:02:52.3]} 15...
Qe7 {[%clk 0:02:31.1]} 16. Rfd1 {[%clk 0:02:53.8]} 16... Rad8 {[%clk 0:02:30.5]}
17. a4 {[%clk 0:02:52.9]} 17... Nd5 {[%clk 0:02:26.1]} 18. b5 {[%clk 0:02:50.3]}
18... Nb4 {[%clk 0:02:22.8]} 19. Qb3 {[%clk 0:02:46.6]} 19... c5 {[%clk
0:02:19.9]} 20. a5 {[%clk 0:02:41.2]} 20... f5 {[%clk 0:02:12.9]} 21. Ba3 {[%clk
0:02:42]} 21... Nh4 {[%clk 0:02:08.5]} 22. g3 {[%clk 0:02:38]} 22... f4 {[%clk
0:02:06.6]} 23. Ne4 {[%clk 0:02:35.5]} 23... fxe3 {[%clk 0:02:01.2]} 24. fxe3
{[%clk 0:02:36.3]} 24... Nf3+ {[%clk 0:01:59.6]} 25. Bxf3 {[%clk 0:02:34.7]}
25... Rxf3 {[%clk 0:02:01.5]} 26. Nxc5 {[%clk 0:02:36.4]} 26... Qxc5 {[%clk
0:01:43.3]} 27. Qxb4 {[%clk 0:02:36]} 27... Qd5 {[%clk 0:01:38.5]} 28. Qc5
{[%clk 0:02:33.3]} 28... Bb8 {[%clk 0:01:18.4]} 29. Qxd5 {[%clk 0:02:21.8]}
29... Rxd5 {[%clk 0:01:20.3]} 30. Rab1 {[%clk 0:02:23.2]} 30... e4 {[%clk
0:01:08.8]} 31. Kg2 {[%clk 0:02:14]} 31... Rf7 {[%clk 0:00:46.3]} 32. dxe4
{[%clk 0:02:00.6]} 32... Rxd1 {[%clk 0:00:31.7]} 33. Rxd1 {[%clk 0:02:02.5]}
33... Bxc4 {[%clk 0:00:31.4]} 34. Rd8+ {[%clk 0:02:02.9]} 34... Kh7 {[%clk
0:00:32.9]} 35. Rxb8 {[%clk 0:02:03.9]} 35... Bxb5 {[%clk 0:00:31.7]} 36. Bc5
{[%clk 0:01:46.1]} 36... Bf1+ {[%clk 0:00:21.1]} 37. Kg1 {[%clk 0:01:47.3]}
37... Bh3 {[%clk 0:00:22]} 38. Rf8 {[%clk 0:01:44.4]} 38... Rc7 {[%clk
0:00:21.5]} 39. Bd6 {[%clk 0:01:19.8]} 39... Rc2 {[%clk 0:00:22.3]} 40. e5
{[%clk 0:01:20.9]} 40... Kg6 {[%clk 0:00:18.2]} 41. Rf4 {[%clk 0:01:21.1]} 41...
b5 {[%clk 0:00:16.5]} 42. axb6 {[%clk 0:01:21.5]} 42... axb6 {[%clk 0:00:18.2]}
43. Rh4 {[%clk 0:01:04.5]} 43... Be6 {[%clk 0:00:13.1]} 44. Rb4 {[%clk
0:01:03.4]} 44... Bh3 {[%clk 0:00:13.8]} 45. Rh4 {[%clk 0:00:59.8]} 45... Bd7
{[%clk 0:00:14.3]} 46. Rf4 {[%clk 0:00:50.5]} 46... b5 {[%clk 0:00:14.5]} 47.
Rf2 {[%clk 0:00:47.2]} 47... Rc1+ {[%clk 0:00:14.7]} 48. Rf1 {[%clk 0:00:44.5]}
48... Rc2 {[%clk 0:00:14.6]} 49. Rf2 {[%clk 0:00:45.6]} 49... Rc3 {[%clk
0:00:14.5]} 50. h4 {[%clk 0:00:22.8]} 50... Rxe3 {[%clk 0:00:14.4]} 51. Kh2
{[%clk 0:00:24.7]} 51... Kh5 {[%clk 0:00:12.4]} 52. Bf8 {[%clk 0:00:20.8]} 52...
g5 {[%clk 0:00:11.9]} 53. hxg5 {[%clk 0:00:21.6]} 53... hxg5 {[%clk 0:00:13.8]}
54. Rd2 {[%clk 0:00:21]} 54... Be6 {[%clk 0:00:13.5]} 55. Bd6 {[%clk 0:00:19.5]}
55... Kg4 {[%clk 0:00:13.9]} 56. Rd4+ {[%clk 0:00:16.4]} 56... Kf3 {[%clk
0:00:15.1]} 57. Rd2 {[%clk 0:00:17.6]} 57... g4 {[%clk 0:00:15]} 58. Rb2 {[%clk
0:00:11.7]} 58... Bc4 {[%clk 0:00:13.8]} 59. Rd2 {[%clk 0:00:12.4]} 59... Re1
{[%clk 0:00:11.4]} 60. Bc5 {[%clk 0:00:12.5]} 60... Ke4 {[%clk 0:00:10.6]} 61.
Bf2 {[%clk 0:00:11.6]} 61... Rf1 {[%clk 0:00:11.6]} 62. Bd4 {[%clk 0:00:11.9]}
62... Bd5 {[%clk 0:00:10.5]} 63. Bb2 {[%clk 0:00:12.9]} 63... Ba8 {[%clk
0:00:09.9]} 64. Kg2 {[%clk 0:00:11.4]} 64... Rf8 {[%clk 0:00:07.9]} 65. Kg1
{[%clk 0:00:11.8]} 65... Ke3 {[%clk 0:00:08.6]} 66. Rh2 {[%clk 0:00:10.6]} 66...
Rd8 {[%clk 0:00:08.7]} 67. Bc1+ {[%clk 0:00:11.6]} 67... Kf3 {[%clk 0:00:09.1]}
68. Rf2+ {[%clk 0:00:13.2]} 68... Ke4 {[%clk 0:00:08.9]} 69. e6 {[%clk
0:00:14.1]} 69... Re8 {[%clk 0:00:06.5]} 70. e7 {[%clk 0:00:14]} 70... Bd5
{[%clk 0:00:06.3]} 71. Bg5 {[%clk 0:00:14.6]} 71... b4 {[%clk 0:00:07.4]} 72.
Rf4+ {[%clk 0:00:16.2]} 72... Ke5 {[%clk 0:00:07.6]} 73. Rxb4 {[%clk 0:00:17.8]}
73... Kf5 {[%clk 0:00:08.7]} 74. Bh4 {[%clk 0:00:19.3]} 74... Bf3 {[%clk
0:00:09.9]} 75. Rf4+ {[%clk 0:00:20.9]} 75... Kg6 {[%clk 0:00:10.4]} 76. Rf8
{[%clk 0:00:21.4]} 76... Bc6 {[%clk 0:00:11.5]} 77. Kf2 {[%clk 0:00:23]} 77...
Bd7 {[%clk 0:00:12.7]} 78. Ke3 {[%clk 0:00:23.8]} 78... Kg7 {[%clk 0:00:14.3]}
79. Bg5 {[%clk 0:00:23]} 79... Kg6 {[%clk 0:00:14.5]} 80. Kf4 {[%clk 0:00:24]}
80... Kh5 {[%clk 0:00:12]} 81. Bh4 {[%clk 0:00:24.3]} 81... Kg6 {[%clk 0:00:13]}
82. Ke5 {[%clk 0:00:25.9]} 82... Kg7 {[%clk 0:00:12.8]} 83. Bf6+ {[%clk
0:00:27.2]} 83... Kg6 {[%clk 0:00:14.3]} 84. Kd6 {[%clk 0:00:28.8]} 84... Ba4
{[%clk 0:00:15.4]} 85. Bh4 {[%clk 0:00:29.7]} 85... Kg7 {[%clk 0:00:16.4]} 86.
Rf4 {[%clk 0:00:30]} 86... Bb5 {[%clk 0:00:15]} 87. Rxg4+ {[%clk 0:00:31.3]}
87... Kf7 {[%clk 0:00:15.8]} 88. Rf4+ {[%clk 0:00:32.9]} 88... Kg6 {[%clk
0:00:17.3]} 89. Rf8 {[%clk 0:00:33.9]} 89... Kh5 {[%clk 0:00:17.5]} 90. Kc7
{[%clk 0:00:33.1]} 90... Kg4 {[%clk 0:00:17.5]} 91. Rxe8 {[%clk 0:00:34]} 91...
Bxe8 {[%clk 0:00:18.1]} 92. Kd8 {[%clk 0:00:35.9]} 1-0